[Event "Titled Tuesday Blitz March 21 Early 2023"]
[White "Rustemov, Alexander"]
[Black "Demin, Vladimir"]
[WhiteFideId "4119002"]
[BlackFideId "4167457"]
[WhiteElo "2863"]
[BlackElo "2627"]
[Result "1/2-1/2"]
[Round "04"]
[TimeControl "180+2"]
[Date "2023.03.21"]
[WhiteClock "0:00:04"]
[BlackClock "0:00:09"]

1. d4 {[%clk 0:03:00]}  d5 {[%clk 0:02:59]} 2. c4 {[%clk 0:03:00]}  e6 {[%clk 0:02:59]} 3. Nc3 {[%clk 0:03:00]}  Nf6 {[%clk 0:02:58]} 4. cxd5 {[%clk 0:03:00]}  exd5 {[%clk 0:02:58]} 5. Bg5 {[%clk 0:03:00]}  Be7 {[%clk 0:02:58]} 6. e3 {[%clk 0:03:00]}  Bg4 {[%clk 0:02:57]} 7. Qb3 {[%clk 0:02:58]}  Nbd7 {[%clk 0:02:40]} 8. Be2 {[%clk 0:02:38]}  Bxe2 {[%clk 0:02:36]} 9. Ngxe2 {[%clk 0:02:38]}  O-O {[%clk 0:02:30]} 10. Bxf6 {[%clk 0:02:29]}  Nxf6 {[%clk 0:02:30]} 11. Qxb7 {[%clk 0:02:28]}  Rb8 {[%clk 0:02:28]} 12. Qc6 {[%clk 0:02:19]}  Rxb2 {[%clk 0:02:25]} 13. O-O {[%clk 0:02:19]}  Qd6 {[%clk 0:02:16]} 14. Qxd6 {[%clk 0:02:16]}  Bxd6 {[%clk 0:02:17]} 15. Rab1 {[%clk 0:02:15]}  Rfb8 {[%clk 0:02:15]} 16. Rxb2 {[%clk 0:02:14]}  Rxb2 {[%clk 0:02:16]} 17. Rb1 {[%clk 0:02:14]}  Rxb1+ {[%clk 0:02:17]} 18. Nxb1 {[%clk 0:02:14]}  Kf8 {[%clk 0:02:06]} 19. Nbc3 {[%clk 0:02:08]}  c6 {[%clk 0:02:06]} 20. h3 {[%clk 0:02:04]}  Ke7 {[%clk 0:02:03]} 21. Kf1 {[%clk 0:02:04]}  Bb4 {[%clk 0:01:52]} 22. Na4 {[%clk 0:02:01]}  Kd6 {[%clk 0:01:51]} 23. Nf4 {[%clk 0:01:55]}  Ne4 {[%clk 0:01:47]} 24. Nd3 {[%clk 0:01:53]}  Ba3 {[%clk 0:01:39]} 25. Ke2 {[%clk 0:01:50]}  g5 {[%clk 0:01:26]} 26. f3 {[%clk 0:01:50]}  Ng3+ {[%clk 0:01:25]} 27. Kf2 {[%clk 0:01:49]}  Nf5 {[%clk 0:01:25]} 28. g4 {[%clk 0:01:45]}  Ne7 {[%clk 0:01:25]} 29. e4 {[%clk 0:01:39]}  f6 {[%clk 0:01:24]} 30. Ke3 {[%clk 0:01:37]}  Ng6 {[%clk 0:01:22]} 31. Nc3 {[%clk 0:01:32]}  Ke6 {[%clk 0:01:16]} 32. exd5+ {[%clk 0:01:26]}  cxd5 {[%clk 0:01:15]} 33. Nb5 {[%clk 0:01:26]}  Bd6 {[%clk 0:01:13]} 34. Nxa7 {[%clk 0:01:26]}  Bf4+ {[%clk 0:00:58]} 35. Ke2 {[%clk 0:01:22]}  Bc7 {[%clk 0:00:56]} 36. Nb5 {[%clk 0:01:21]}  Bb6 {[%clk 0:00:55]} 37. Ke3 {[%clk 0:01:18]}  Kd7 {[%clk 0:00:47]} 38. Nc3 {[%clk 0:01:17]}  Kd6 {[%clk 0:00:46]} 39. Ne2 {[%clk 0:01:17]}  Ne5 {[%clk 0:00:37]} 40. Nxe5 {[%clk 0:01:15]}  fxe5 {[%clk 0:00:38]} 41. Kd3 {[%clk 0:01:15]}  exd4 {[%clk 0:00:37]} 42. f4 {[%clk 0:01:05]}  gxf4 {[%clk 0:00:37]} 43. Nxf4 {[%clk 0:01:05]}  Ke5 {[%clk 0:00:37]} 44. Ne2 {[%clk 0:00:56]}  Bc5 {[%clk 0:00:26]} 45. a4 {[%clk 0:00:55]}  Bb6 {[%clk 0:00:26]} 46. h4 {[%clk 0:00:55]}  Ba5 {[%clk 0:00:17]} 47. h5 {[%clk 0:00:44]}  Bb6 {[%clk 0:00:15]} 48. g5 {[%clk 0:00:19]}  Kf5 {[%clk 0:00:15]} 49. g6 {[%clk 0:00:14]}  hxg6 {[%clk 0:00:16]} 50. h6 {[%clk 0:00:14]}  Kf6 {[%clk 0:00:16]} 51. Nf4 {[%clk 0:00:12]}  Kf7 {[%clk 0:00:13]} 52. Nxd5 {[%clk 0:00:10]}  Ba5 {[%clk 0:00:13]} 53. Kc4 {[%clk 0:00:10]}  g5 {[%clk 0:00:14]} 54. Kxd4 {[%clk 0:00:08]}  Kg6 {[%clk 0:00:13]} 55. Ne3 {[%clk 0:00:05]}  Kxh6 {[%clk 0:00:12]} 56. Nc4 {[%clk 0:00:05]}  Bb4 {[%clk 0:00:13]} 57. Ke4 {[%clk 0:00:05]}  Kh5 {[%clk 0:00:12]} 58. Kf3 {[%clk 0:00:05]}  g4+ {[%clk 0:00:11]} 59. Kg2 {[%clk 0:00:05]}  Kh4 {[%clk 0:00:11]} 60. Ne3 {[%clk 0:00:05]}  Kg5 {[%clk 0:00:10]} 61. Kg3 {[%clk 0:00:03]}  Be1+ {[%clk 0:00:09]} 62. Kg2 {[%clk 0:00:04]}  Ba5 {[%clk 0:00:08]} 63. Kg3 {[%clk 0:00:03]}  Bc7+ {[%clk 0:00:08]} 64. Kg2 {[%clk 0:00:04]}  Ba5 {[%clk 0:00:08]} 65. Kg3 {[%clk 0:00:04]}  Bc7+ {[%clk 0:00:08]} 66. Kg2 {[%clk 0:00:04]}  Ba5 {[%clk 0:00:09]} 1/2-1/2


[Site "https://www.chess.com"]

[Event "Titled Tuesday Blitz March 21 Early 2023"]
[White "Ozates, Tuna"]
[Black "Vakhlamov, Igor L."]
[WhiteFideId "6354521"]
[BlackFideId "24126748"]
[WhiteElo "2151"]
[BlackElo "2400"]
[Result "1/2-1/2"]
[Round "04"]
[TimeControl "180+2"]
[Date "2023.03.21"]
[WhiteClock "0:00:09"]
[BlackClock "0:00:09"]

1. e4 {[%clk 0:02:49]}  c5 {[%clk 0:02:59]} 2. Nc3 {[%clk 0:02:47]}  e6 {[%clk 0:02:57]} 3. g3 {[%clk 0:02:47]}  d5 {[%clk 0:02:56]} 4. Bg2 {[%clk 0:02:47]}  dxe4 {[%clk 0:02:56]} 5. Nxe4 {[%clk 0:02:47]}  Nc6 {[%clk 0:02:52]} 6. Nf3 {[%clk 0:02:47]}  Be7 {[%clk 0:02:51]} 7. O-O {[%clk 0:02:48]}  Nf6 {[%clk 0:02:51]} 8. Re1 {[%clk 0:02:43]}  O-O {[%clk 0:02:51]} 9. d3 {[%clk 0:02:43]}  Bd7 {[%clk 0:02:38]} 10. h3 {[%clk 0:02:40]}  Rc8 {[%clk 0:02:37]} 11. Be3 {[%clk 0:02:38]}  b6 {[%clk 0:02:36]} 12. Qe2 {[%clk 0:02:37]}  c4 {[%clk 0:02:24]} 13. Rad1 {[%clk 0:02:36]}  Qc7 {[%clk 0:02:15]} 14. Bf4 {[%clk 0:02:27]}  e5 {[%clk 0:01:54]} 15. Nxf6+ {[%clk 0:02:26]}  Bxf6 {[%clk 0:01:55]} 16. Bg5 {[%clk 0:02:08]}  Bxg5 {[%clk 0:01:49]} 17. Nxg5 {[%clk 0:02:09]}  h6 {[%clk 0:01:48]} 18. Nf3 {[%clk 0:02:01]}  cxd3 {[%clk 0:01:40]} 19. cxd3 {[%clk 0:01:53]}  Rfe8 {[%clk 0:01:38]} 20. Qe3 {[%clk 0:01:34]}  Qd6 {[%clk 0:01:35]} 21. Nd2 {[%clk 0:01:33]}  Be6 {[%clk 0:01:29]} 22. Nc4 {[%clk 0:01:31]}  Bxc4 {[%clk 0:01:25]} 23. dxc4 {[%clk 0:01:32]}  Nd4 {[%clk 0:01:25]} 24. Bd5 {[%clk 0:01:26]}  Qf6 {[%clk 0:01:11]} 25. Rd2 {[%clk 0:01:14]}  Rcd8 {[%clk 0:01:09]} 26. Kg2 {[%clk 0:01:14]}  g6 {[%clk 0:01:04]} 27. Red1 {[%clk 0:01:08]}  Kg7 {[%clk 0:01:02]} 28. b4 {[%clk 0:01:01]}  h5 {[%clk 0:00:58]} 29. h4 {[%clk 0:01:01]}  Re7 {[%clk 0:00:52]} 30. Re1 {[%clk 0:00:58]}  Rdd7 {[%clk 0:00:47]} 31. Qe4 {[%clk 0:00:49]}  a5 {[%clk 0:00:44]} 32. a3 {[%clk 0:00:49]}  axb4 {[%clk 0:00:44]} 33. axb4 {[%clk 0:00:49]}  Qd6 {[%clk 0:00:45]} 34. b5 {[%clk 0:00:47]}  Qf6 {[%clk 0:00:35]} 35. Ra1 {[%clk 0:00:43]}  Nb3 {[%clk 0:00:32]} 36. Rda2 {[%clk 0:00:39]}  Nxa1 {[%clk 0:00:32]} 37. Rxa1 {[%clk 0:00:40]}  Qf5 {[%clk 0:00:30]} 38. Qe3 {[%clk 0:00:40]}  Rd6 {[%clk 0:00:28]} 39. Ra6 {[%clk 0:00:39]}  Qf6 {[%clk 0:00:28]} 40. Bc6 {[%clk 0:00:32]}  Rxc6 {[%clk 0:00:25]} 41. bxc6 {[%clk 0:00:32]}  Qxc6+ {[%clk 0:00:25]} 42. Kg1 {[%clk 0:00:31]}  Qxc4 {[%clk 0:00:22]} 43. Rxb6 {[%clk 0:00:24]}  Qd5 {[%clk 0:00:23]} 44. Qg5 {[%clk 0:00:20]}  Re6 {[%clk 0:00:17]} 45. Rxe6 {[%clk 0:00:16]}  Qxe6 {[%clk 0:00:18]} 46. Qe3 {[%clk 0:00:17]}  Qf5 {[%clk 0:00:18]} 47. Kg2 {[%clk 0:00:16]}  Qf6 {[%clk 0:00:18]} 48. Kg1 {[%clk 0:00:17]}  Qd6 {[%clk 0:00:19]} 49. Kg2 {[%clk 0:00:17]}  Qd5+ {[%clk 0:00:19]} 50. Kg1 {[%clk 0:00:17]}  Qd4 {[%clk 0:00:20]} 51. Qe1 {[%clk 0:00:16]}  Kf6 {[%clk 0:00:14]} 52. Qe2 {[%clk 0:00:15]}  Qd5 {[%clk 0:00:13]} 53. Qe3 {[%clk 0:00:13]}  Ke6 {[%clk 0:00:12]} 54. Qb6+ {[%clk 0:00:13]}  Qd6 {[%clk 0:00:13]} 55. Qb3+ {[%clk 0:00:13]}  Kf6 {[%clk 0:00:12]} 56. Qf3+ {[%clk 0:00:14]}  Kg7 {[%clk 0:00:13]} 57. Qe3 {[%clk 0:00:14]}  f5 {[%clk 0:00:13]} 58. Qe2 {[%clk 0:00:13]}  Qf6 {[%clk 0:00:14]} 59. Qd2 {[%clk 0:00:13]}  f4 {[%clk 0:00:13]} 60. Kg2 {[%clk 0:00:13]}  fxg3 {[%clk 0:00:13]} 61. fxg3 {[%clk 0:00:14]}  Qc6+ {[%clk 0:00:12]} 62. Kf2 {[%clk 0:00:13]}  Qc5+ {[%clk 0:00:13]} 63. Kg2 {[%clk 0:00:13]}  Qd4 {[%clk 0:00:12]} 64. Qc2 {[%clk 0:00:10]}  Qd5+ {[%clk 0:00:11]} 65. Kf2 {[%clk 0:00:09]}  Kf6 {[%clk 0:00:11]} 66. Qc1 {[%clk 0:00:06]}  Qd4+ {[%clk 0:00:11]} 67. Kg2 {[%clk 0:00:06]}  Qd5+ {[%clk 0:00:12]} 68. Kf2 {[%clk 0:00:07]}  e4 {[%clk 0:00:11]} 69. Qc3+ {[%clk 0:00:06]}  Kf5 {[%clk 0:00:11]} 70. Qc1 {[%clk 0:00:03]}  Qd4+ {[%clk 0:00:12]} 71. Kg2 {[%clk 0:00:04]}  Qd5 {[%clk 0:00:09]} 72. Qg5+ {[%clk 0:00:03]}  Ke6 {[%clk 0:00:07]} 73. Qxg6+ {[%clk 0:00:04]}  Kd7 {[%clk 0:00:07]} 74. Qg7+ {[%clk 0:00:05]}  Kc6 {[%clk 0:00:07]} 75. Qc3+ {[%clk 0:00:05]}  Kd6 {[%clk 0:00:07]} 76. Qf6+ {[%clk 0:00:05]}  Kc5 {[%clk 0:00:08]} 77. Qc3+ {[%clk 0:00:06]}  Kd6 {[%clk 0:00:09]} 78. Qf6+ {[%clk 0:00:06]}  Qe6 {[%clk 0:00:08]} 79. Qd4+ {[%clk 0:00:06]}  Ke7 {[%clk 0:00:07]} 80. Qg7+ {[%clk 0:00:07]}  Kd6 {[%clk 0:00:07]} 81. Qd4+ {[%clk 0:00:07]}  Kc6 {[%clk 0:00:07]} 82. Qc3+ {[%clk 0:00:07]}  Kb5 {[%clk 0:00:08]} 83. Qb2+ {[%clk 0:00:07]}  Kc5 {[%clk 0:00:08]} 84. Qc3+ {[%clk 0:00:07]}  Qc4 {[%clk 0:00:08]} 85. Qe5+ {[%clk 0:00:07]}  Qd5 {[%clk 0:00:08]} 86. Qc3+ {[%clk 0:00:07]}  Kb5 {[%clk 0:00:08]} 87. Qb2+ {[%clk 0:00:08]}  Ka4 {[%clk 0:00:08]} 88. Qa1+ {[%clk 0:00:08]}  Kb4 {[%clk 0:00:09]} 89. Qb2+ {[%clk 0:00:08]}  Qb3 {[%clk 0:00:08]} 90. Qd4+ {[%clk 0:00:08]}  Qc4 {[%clk 0:00:09]} 91. Qb2+ {[%clk 0:00:09]}  Kc5 {[%clk 0:00:09]} 92. Qe5+ {[%clk 0:00:09]}  Kb4 {[%clk 0:00:09]} 93. Qb2+ {[%clk 0:00:09]}  Ka5 {[%clk 0:00:09]} 94. Qa3+ {[%clk 0:00:09]}  Kb5 {[%clk 0:00:09]} 95. Qb2+ {[%clk 0:00:09]}  Kc5 {[%clk 0:00:09]} 96. Qe5+ {[%clk 0:00:09]} 1/2-1/2


[Site "https://www.chess.com"]

[Event "Titled Tuesday Blitz March 21 Early 2023"]
[White "Perez Ponsa, Federico"]
[Black "Vlassov, Nikolai"]
[WhiteFideId "117927"]
[BlackFideId "4103360"]
[WhiteElo "2592"]
[BlackElo "2324"]
[Result "1-0"]
[Round "04"]
[TimeControl "180+2"]
[Date "2023.03.21"]
[WhiteClock "0:00:46"]
[BlackClock "0:00:04"]

1. d4 {[%clk 0:02:54]}  Nf6 {[%clk 0:02:56]} 2. c4 {[%clk 0:02:55]}  Nc6 {[%clk 0:02:56]} 3. Nc3 {[%clk 0:02:50]}  e5 {[%clk 0:02:55]} 4. d5 {[%clk 0:02:43]}  Ne7 {[%clk 0:02:56]} 5. d6 {[%clk 0:02:34]}  Ng6 {[%clk 0:02:54]} 6. dxc7 {[%clk 0:02:32]}  Qxc7 {[%clk 0:02:54]} 7. e4 {[%clk 0:02:30]}  Bc5 {[%clk 0:02:49]} 8. Bd3 {[%clk 0:02:26]}  a6 {[%clk 0:02:15]} 9. Bg5 {[%clk 0:02:22]}  d6 {[%clk 0:02:01]} 10. Nf3 {[%clk 0:02:11]}  Ng4 {[%clk 0:01:43]} 11. O-O {[%clk 0:02:08]}  h6 {[%clk 0:01:43]} 12. Bd2 {[%clk 0:02:05]}  O-O {[%clk 0:01:31]} 13. Nd5 {[%clk 0:02:02]}  Qd8 {[%clk 0:01:31]} 14. b4 {[%clk 0:01:54]}  Ba7 {[%clk 0:01:28]} 15. h3 {[%clk 0:01:52]}  Nf6 {[%clk 0:01:28]} 16. Rc1 {[%clk 0:01:51]}  Nxd5 {[%clk 0:01:25]} 17. cxd5 {[%clk 0:01:50]}  f5 {[%clk 0:01:17]} 18. exf5 {[%clk 0:01:41]}  Bxf5 {[%clk 0:01:18]} 19. Bxf5 {[%clk 0:01:38]}  Rxf5 {[%clk 0:01:18]} 20. Qe2 {[%clk 0:01:38]}  Qf6 {[%clk 0:01:17]} 21. Rc7 {[%clk 0:01:34]}  Rb8 {[%clk 0:01:07]} 22. Qe4 {[%clk 0:01:22]}  Bb6 {[%clk 0:01:00]} 23. Rd7 {[%clk 0:01:11]}  Rh5 {[%clk 0:00:42]} 24. Qg4 {[%clk 0:01:06]}  Nf8 {[%clk 0:00:29]} 25. Rxg7+ {[%clk 0:00:56]}  Qxg7 {[%clk 0:00:28]} 26. Qxh5 {[%clk 0:00:56]}  e4 {[%clk 0:00:28]} 27. Bxh6 {[%clk 0:00:55]}  Qg6 {[%clk 0:00:22]} 28. Qxg6+ {[%clk 0:00:54]}  Nxg6 {[%clk 0:00:23]} 29. Nd2 {[%clk 0:00:55]}  Re8 {[%clk 0:00:19]} 30. Re1 {[%clk 0:00:55]}  Re5 {[%clk 0:00:19]} 31. Nxe4 {[%clk 0:00:54]}  Kh8 {[%clk 0:00:08]} 32. Bc1 {[%clk 0:00:51]}  Rxd5 {[%clk 0:00:08]} 33. Bb2+ {[%clk 0:00:51]}  Ne5 {[%clk 0:00:06]} 34. Nxd6 {[%clk 0:00:48]}  Bd4 {[%clk 0:00:03]} 35. Bxd4 {[%clk 0:00:46]}  Rxd4 {[%clk 0:00:03]} 36. Rxe5 {[%clk 0:00:46]}  Rxd6 {[%clk 0:00:04]} 37. Re8+ {[%clk 0:00:46]} 1-0


[Site "https://www.chess.com"]

[Event "Titled Tuesday Blitz March 21 Early 2023"]
[White "Filgueira, Hernan"]
[Black "Ashraf, Artin"]
[WhiteFideId "101770"]
[BlackFideId "22514805"]
[WhiteElo "2363"]
[BlackElo "2188"]
[Result "1-0"]
[Round "04"]
[TimeControl "180+2"]
[Date "2023.03.21"]
[WhiteClock "0:00:17"]
[BlackClock "0:00:08"]

1. c4 {[%clk 0:02:59]}  c5 {[%clk 0:02:53]} 2. Nf3 {[%clk 0:02:57]}  Nc6 {[%clk 0:02:52]} 3. Nc3 {[%clk 0:02:54]}  g6 {[%clk 0:02:51]} 4. e3 {[%clk 0:02:54]}  Nf6 {[%clk 0:02:44]} 5. d4 {[%clk 0:02:54]}  cxd4 {[%clk 0:02:44]} 6. exd4 {[%clk 0:02:54]}  d5 {[%clk 0:02:44]} 7. cxd5 {[%clk 0:02:53]}  Nxd5 {[%clk 0:02:44]} 8. Bc4 {[%clk 0:02:52]}  Nxc3 {[%clk 0:02:40]} 9. bxc3 {[%clk 0:02:45]}  Bg7 {[%clk 0:02:39]} 10. O-O {[%clk 0:02:44]}  O-O {[%clk 0:02:39]} 11. Re1 {[%clk 0:02:39]}  b6 {[%clk 0:02:36]} 12. Bg5 {[%clk 0:02:34]}  Re8 {[%clk 0:02:35]} 13. Qb3 {[%clk 0:02:23]}  Rf8 {[%clk 0:02:13]} 14. Bb5 {[%clk 0:02:13]}  Na5 {[%clk 0:02:04]} 15. Qa3 {[%clk 0:02:04]}  Qd5 {[%clk 0:01:59]} 16. Bd3 {[%clk 0:01:50]}  Bf5 {[%clk 0:01:51]} 17. Bxf5 {[%clk 0:01:47]}  Qxf5 {[%clk 0:01:52]} 18. Bxe7 {[%clk 0:01:46]}  Rfc8 {[%clk 0:01:51]} 19. Bg5 {[%clk 0:01:38]}  Rc7 {[%clk 0:01:21]} 20. Rac1 {[%clk 0:01:26]}  Rac8 {[%clk 0:01:19]} 21. h3 {[%clk 0:01:13]}  Qd3 {[%clk 0:01:03]} 22. Re3 {[%clk 0:01:07]}  Qb5 {[%clk 0:00:57]} 23. Re7 {[%clk 0:00:59]}  Bf8 {[%clk 0:00:52]} 24. Rce1 {[%clk 0:00:39]}  Rxc3 {[%clk 0:00:30]} 25. Qd6 {[%clk 0:00:31]}  Bxe7 {[%clk 0:00:23]} 26. Bxe7 {[%clk 0:00:29]}  Rc1 {[%clk 0:00:19]} 27. Rxc1 {[%clk 0:00:26]}  Rxc1+ {[%clk 0:00:20]} 28. Kh2 {[%clk 0:00:26]}  Rc8 {[%clk 0:00:18]} 29. Ne5 {[%clk 0:00:24]}  Qe8 {[%clk 0:00:18]} 30. Ng4 {[%clk 0:00:23]}  Qc6 {[%clk 0:00:11]} 31. Qe5 {[%clk 0:00:17]}  Nc4 {[%clk 0:00:08]} 32. Nh6# {[%clk 0:00:17]} 1-0


[Site "https://www.chess.com"]

[Event "Titled Tuesday Blitz March 21 Early 2023"]
[White "Kobo, Ori"]
[Black "Alex_Sahakyan2006"]
[WhiteFideId "2812320"]
[WhiteElo "2447"]
[BlackElo "2615"]
[Result "1-0"]
[Round "04"]
[TimeControl "180+2"]
[Date "2023.03.21"]
[WhiteClock "0:00:07"]
[BlackClock "0:00:01"]

1. e4 {[%clk 0:03:00]}  c5 {[%clk 0:02:57]} 2. Nc3 {[%clk 0:03:01]}  Nc6 {[%clk 0:02:56]} 3. Bb5 {[%clk 0:03:01]}  Nd4 {[%clk 0:02:54]} 4. Nf3 {[%clk 0:03:01]}  e6 {[%clk 0:02:50]} 5. O-O {[%clk 0:03:00]}  a6 {[%clk 0:02:49]} 6. Bd3 {[%clk 0:03:00]}  Nc6 {[%clk 0:02:48]} 7. b3 {[%clk 0:03:00]}  g5 {[%clk 0:02:40]} 8. Bb2 {[%clk 0:03:00]}  Bg7 {[%clk 0:02:41]} 9. Na4 {[%clk 0:03:00]}  Bxb2 {[%clk 0:02:41]} 10. Nxb2 {[%clk 0:03:01]}  d6 {[%clk 0:02:39]} 11. c3 {[%clk 0:02:55]}  e5 {[%clk 0:02:38]} 12. Nc4 {[%clk 0:02:50]}  g4 {[%clk 0:02:17]} 13. Ne1 {[%clk 0:02:49]}  Be6 {[%clk 0:02:09]} 14. Ne3 {[%clk 0:02:48]}  Qh4 {[%clk 0:02:07]} 15. f4 {[%clk 0:02:16]}  exf4 {[%clk 0:02:08]} 16. Rxf4 {[%clk 0:02:16]}  Qg5 {[%clk 0:02:08]} 17. Rf2 {[%clk 0:02:06]}  h5 {[%clk 0:02:04]} 18. Bc4 {[%clk 0:01:54]}  O-O-O {[%clk 0:01:58]} 19. Qe2 {[%clk 0:01:47]}  Nge7 {[%clk 0:01:49]} 20. N1c2 {[%clk 0:01:42]}  h4 {[%clk 0:01:46]} 21. Bxe6+ {[%clk 0:01:40]}  fxe6 {[%clk 0:01:46]} 22. Qxg4 {[%clk 0:01:38]}  Qe5 {[%clk 0:01:45]} 23. Nc4 {[%clk 0:01:35]}  Qh5 {[%clk 0:01:40]} 24. Qxe6+ {[%clk 0:01:33]}  Kc7 {[%clk 0:01:38]} 25. Rf7 {[%clk 0:01:30]}  Rh6 {[%clk 0:01:25]} 26. Rf6 {[%clk 0:01:15]}  Rxf6 {[%clk 0:00:54]} 27. Qxf6 {[%clk 0:01:16]}  h3 {[%clk 0:00:54]} 28. g3 {[%clk 0:01:15]}  Qe2 {[%clk 0:00:40]} 29. Qf1 {[%clk 0:00:57]}  Qxe4 {[%clk 0:00:36]} 30. d3 {[%clk 0:00:57]}  Qg6 {[%clk 0:00:26]} 31. Re1 {[%clk 0:00:51]}  Rh8 {[%clk 0:00:17]} 32. Qf4 {[%clk 0:00:40]}  Nd5 {[%clk 0:00:14]} 33. Qd2 {[%clk 0:00:37]}  Rf8 {[%clk 0:00:12]} 34. N2e3 {[%clk 0:00:35]}  Nxe3 {[%clk 0:00:09]} 35. Nxe3 {[%clk 0:00:35]}  Kb6 {[%clk 0:00:08]} 36. d4 {[%clk 0:00:32]}  Ka7 {[%clk 0:00:08]} 37. Nc4 {[%clk 0:00:27]}  Qf6 {[%clk 0:00:05]} 38. Qe3 {[%clk 0:00:21]}  cxd4 {[%clk 0:00:05]} 39. cxd4 {[%clk 0:00:21]}  Qxd4 {[%clk 0:00:05]} 40. Nxd6 {[%clk 0:00:14]}  Qxe3+ {[%clk 0:00:03]} 41. Rxe3 {[%clk 0:00:15]}  Nd4 {[%clk 0:00:03]} 42. g4 {[%clk 0:00:10]}  Nf3+ {[%clk 0:00:04]} 43. Kh1 {[%clk 0:00:11]}  Ng5 {[%clk 0:00:03]} 44. Nf5 {[%clk 0:00:11]}  Rc8 {[%clk 0:00:03]} 45. Kg1 {[%clk 0:00:10]}  Rc1+ {[%clk 0:00:02]} 46. Kf2 {[%clk 0:00:10]}  Rc2+ {[%clk 0:00:03]} 47. Re2 {[%clk 0:00:11]}  Rc1 {[%clk 0:00:02]} 48. Kg3 {[%clk 0:00:10]}  Rg1+ {[%clk 0:00:02]} 49. Kf4 {[%clk 0:00:10]}  Nf7 {[%clk 0:00:02]} 50. Re7 {[%clk 0:00:10]}  Rf1+ {[%clk 0:00:02]} 51. Kg3 {[%clk 0:00:09]}  Ng5 {[%clk 0:00:03]} 52. Kh4 {[%clk 0:00:09]}  Nf3+ {[%clk 0:00:02]} 53. Kxh3 {[%clk 0:00:09]}  Ne1 {[%clk 0:00:01]} 54. Kg3 {[%clk 0:00:08]}  Rh1 {[%clk 0:00:02]} 55. Re2 {[%clk 0:00:07]}  Nd3 {[%clk 0:00:01]} 56. h4 {[%clk 0:00:07]}  Nc5 {[%clk 0:00:01]} 57. h5 {[%clk 0:00:07]}  Nd7 {[%clk 0:00:02]} 58. Rh2 {[%clk 0:00:07]}  Rg1+ {[%clk 0:00:02]} 59. Kf2 {[%clk 0:00:07]}  Rxg4 {[%clk 0:00:02]} 60. h6 {[%clk 0:00:08]}  Nf6 {[%clk 0:00:02]} 61. Kf3 {[%clk 0:00:08]}  Rg5 {[%clk 0:00:01]} 62. Kf4 {[%clk 0:00:07]}  Rg4+ {[%clk 0:00:01]} 63. Ke5 {[%clk 0:00:08]}  Nh7 {[%clk 0:00:02]} 64. Nd6 {[%clk 0:00:07]}  Kb6 {[%clk 0:00:01]} 65. Ne4 {[%clk 0:00:07]} 1-0


[Site "https://www.chess.com"]

[Event "Titled Tuesday Blitz March 21 Early 2023"]
[White "Kukhmazov, Arsen"]
[Black "Jeet, Jain"]
[WhiteFideId "24108260"]
[BlackFideId "5073022"]
[WhiteElo "2378"]
[BlackElo "2067"]
[Result "1-0"]
[Round "04"]
[TimeControl "180+2"]
[Date "2023.03.21"]
[WhiteClock "0:00:05"]
[BlackClock "0:00:01"]

1. d4 {[%clk 0:02:59]}  Nf6 {[%clk 0:02:59]} 2. c4 {[%clk 0:02:59]}  g6 {[%clk 0:03:00]} 3. h4 {[%clk 0:02:57]}  h5 {[%clk 0:02:57]} 4. Nc3 {[%clk 0:02:50]}  d5 {[%clk 0:02:56]} 5. Bg5 {[%clk 0:02:29]}  Ne4 {[%clk 0:02:19]} 6. Nxd5 {[%clk 0:02:21]}  Nxg5 {[%clk 0:02:18]} 7. hxg5 {[%clk 0:02:22]}  Nc6 {[%clk 0:02:12]} 8. Nf3 {[%clk 0:02:22]}  Bg4 {[%clk 0:02:11]} 9. e3 {[%clk 0:02:20]}  Bg7 {[%clk 0:02:10]} 10. Be2 {[%clk 0:02:16]}  e6 {[%clk 0:02:10]} 11. Nc3 {[%clk 0:02:15]}  O-O {[%clk 0:02:08]} 12. Ne4 {[%clk 0:02:10]}  Qe7 {[%clk 0:01:53]} 13. Nfd2 {[%clk 0:02:02]}  Bxe2 {[%clk 0:01:47]} 14. Qxe2 {[%clk 0:02:03]}  Rad8 {[%clk 0:01:44]} 15. O-O-O {[%clk 0:02:00]}  e5 {[%clk 0:01:41]} 16. d5 {[%clk 0:01:56]}  Na5 {[%clk 0:01:40]} 17. g4 {[%clk 0:01:42]}  hxg4 {[%clk 0:01:20]} 18. Qxg4 {[%clk 0:01:43]}  b5 {[%clk 0:01:20]} 19. Qh4 {[%clk 0:01:42]}  Rfe8 {[%clk 0:01:20]} 20. Nf6+ {[%clk 0:01:42]}  Kf8 {[%clk 0:01:15]} 21. Nde4 {[%clk 0:01:12]}  Qb4 {[%clk 0:01:11]} 22. d6 {[%clk 0:00:59]}  cxd6 {[%clk 0:01:07]} 23. Qh8+ {[%clk 0:00:55]}  Bxh8 {[%clk 0:01:00]} 24. Rxh8+ {[%clk 0:00:56]}  Kg7 {[%clk 0:00:57]} 25. Rh7+ {[%clk 0:00:49]}  Kf8 {[%clk 0:00:56]} 26. Rh8+ {[%clk 0:00:41]}  Kg7 {[%clk 0:00:57]} 27. Rxe8 {[%clk 0:00:29]}  Nxc4 {[%clk 0:00:46]} 28. Rh1 {[%clk 0:00:10]}  Qxb2+ {[%clk 0:00:42]} 29. Kd1 {[%clk 0:00:10]}  Rxe8 {[%clk 0:00:17]} 30. Rh7+ {[%clk 0:00:10]}  Kf8 {[%clk 0:00:18]} 31. Rh8+ {[%clk 0:00:11]}  Kg7 {[%clk 0:00:17]} 32. Rh7+ {[%clk 0:00:09]}  Kf8 {[%clk 0:00:17]} 33. Rh8+ {[%clk 0:00:10]}  Kg7 {[%clk 0:00:17]} 34. Rxe8 {[%clk 0:00:10]}  Qb1+ {[%clk 0:00:14]} 35. Ke2 {[%clk 0:00:10]}  Qc2+ {[%clk 0:00:14]} 36. Kf3 {[%clk 0:00:10]}  Nd2+ {[%clk 0:00:13]} 37. Kg2 {[%clk 0:00:10]}  Qxe4+ {[%clk 0:00:09]} 38. Nxe4 {[%clk 0:00:11]}  Nxe4 {[%clk 0:00:09]} 39. Ra8 {[%clk 0:00:11]}  Nxg5 {[%clk 0:00:08]} 40. Rxa7 {[%clk 0:00:11]}  d5 {[%clk 0:00:07]} 41. Rb7 {[%clk 0:00:11]}  d4 {[%clk 0:00:07]} 42. Rxb5 {[%clk 0:00:12]}  Ne4 {[%clk 0:00:08]} 43. Rxe5 {[%clk 0:00:11]}  Nc3 {[%clk 0:00:08]} 44. exd4 {[%clk 0:00:11]}  Nxa2 {[%clk 0:00:08]} 45. Kf3 {[%clk 0:00:10]}  Kf6 {[%clk 0:00:07]} 46. Rc5 {[%clk 0:00:08]}  Nb4 {[%clk 0:00:06]} 47. Ke4 {[%clk 0:00:09]}  Ke6 {[%clk 0:00:05]} 48. Rb5 {[%clk 0:00:08]}  Nc2 {[%clk 0:00:04]} 49. d5+ {[%clk 0:00:07]}  Kd6 {[%clk 0:00:02]} 50. Rb6+ {[%clk 0:00:08]}  Ke7 {[%clk 0:00:02]} 51. Rc6 {[%clk 0:00:06]}  Ne1 {[%clk 0:00:01]} 52. Rc7+ {[%clk 0:00:04]}  Kf6 {[%clk 0:00:01]} 53. d6 {[%clk 0:00:05]} 1-0


[Site "https://www.chess.com"]

[Event "Titled Tuesday Blitz March 21 Early 2023"]
[White "Lukiyanchuk, Vladislav"]
[Black "Mikhailovsky, Vladimir"]
[WhiteFideId "14127113"]
[BlackFideId "34105414"]
[WhiteElo "2345"]
[BlackElo "2293"]
[Result "1-0"]
[Round "04"]
[TimeControl "180+2"]
[Date "2023.03.21"]
[WhiteClock "0:00:58"]
[BlackClock "0:01:33"]

1. d4 {[%clk 0:03:00]}  e6 {[%clk 0:02:56]} 2. Bf4 {[%clk 0:02:59]}  c5 {[%clk 0:02:55]} 3. dxc5 {[%clk 0:02:58]}  Bxc5 {[%clk 0:02:55]} 4. e4 {[%clk 0:02:58]}  Qb6 {[%clk 0:02:52]} 5. Nh3 {[%clk 0:02:36]}  Qxb2 {[%clk 0:02:49]} 6. Nd2 {[%clk 0:02:36]}  Nf6 {[%clk 0:02:41]} 7. Bd3 {[%clk 0:02:35]}  Nc6 {[%clk 0:02:35]} 8. O-O {[%clk 0:02:31]}  O-O {[%clk 0:02:35]} 9. Nc4 {[%clk 0:01:56]}  Qb4 {[%clk 0:02:12]} 10. c3 {[%clk 0:01:47]}  Qxc3 {[%clk 0:02:11]} 11. Rc1 {[%clk 0:01:46]}  Qb4 {[%clk 0:01:57]} 12. a3 {[%clk 0:01:39]}  Qb5 {[%clk 0:01:57]} 13. e5 {[%clk 0:01:38]}  Nd5 {[%clk 0:01:48]} 14. Bxh7+ {[%clk 0:01:00]}  Kxh7 {[%clk 0:01:49]} 15. Qh5+ {[%clk 0:00:59]}  Kg8 {[%clk 0:01:45]} 16. Ng5 {[%clk 0:00:57]}  Rd8 {[%clk 0:01:32]} 17. Qxf7+ {[%clk 0:00:57]}  Kh8 {[%clk 0:01:32]} 18. Qh5+ {[%clk 0:00:57]}  Kg8 {[%clk 0:01:33]} 19. Qh7+ {[%clk 0:00:57]}  Kf8 {[%clk 0:01:32]} 20. Qh8+ {[%clk 0:00:57]}  Ke7 {[%clk 0:01:32]} 21. Qxg7+ {[%clk 0:00:58]}  Ke8 {[%clk 0:01:33]} 22. Qf7# {[%clk 0:00:58]} 1-0


[Site "https://www.chess.com"]